Cogmind - Beta 11 X2 *** ADVENTURER MODE // 2021.03.06 @ 18:08:38 Player: Luigi Panache Result: Destroyed by D-63 Destroyer with Heavy Rocket Launcher Performance ------------- Evolutions (4) 2000 Regions Visited (15) 3000 Robots Destroyed (186) 930 Value Destroyed (5988) 5988 Prototype IDs (24) 480 Alien Tech Used (1) 200 Bonus (894) 894 TOTAL SCORE: 13492 Bonus ------- High Alert Combat Kills 360 Follower Combat Kills 872 Met Data Miner 300 Met Imprinter 300 Was Imprinted 300 Friendly Fire -1238 Cogmind --------- Core Integrity 0/850 Matter 300/300 Energy 100/100 System Corruption 0% Temperature Cool (0) Movement Core (700) Ox13 Location -5/Proximity Caves Parts ------- > --- POWER (1) -------- (None) > --- PROPULSION (4) --- (None) > --- UTILITY (8) ------ High-capacity Storage Unit Improved Signal Interpreter > --- WEAPON (3) ------- (None) > --- INVENTORY (20) --- Light Antimatter Reactor Improved Heavy Armor Plating Mobile Refinery Mk. CCLXVII Storm Laser Shotgun Minigun Enhanced Autogun Flak Gun Magnetic Acceleration Cannon Magnetic Acceleration Cannon Magnetic Acceleration Cannon Guided Missile Launcher Long-range Missile Launcher CR-A16's Pointy Stick Peak State ------------ > --- POWER ------------ Makeshift Power Source > --- PROPULSION ------- Wheel Wheel Compact Wheel Compact Wheel > --- UTILITY ---------- High-capacity Storage Unit Improved Sensor Array Improved Signal Interpreter Advanced Targeting Computer Improved Propulsion Shielding Improved Heavy Armor Plating Improved System Shield > --- WEAPON ----------- Shock Rifle Heavy Riot Gun Magnetic Acceleration Cannon > --- INVENTORY -------- Light Antimatter Reactor Wheel Improved Heavy Armor Plating Mobile Refinery Mk. CCLXVII Storm Laser Shotgun Minigun Enhanced Autogun Flak Gun Magnetic Acceleration Cannon Magnetic Acceleration Cannon Magnetic Acceleration Cannon Guided Missile Launcher Long-range Missile Launcher CR-A16's Pointy Stick [Rating: 57] Favorites ----------- Power Ion Engine Engine Ion Engine Power Core Fission Core Propulsion Wheel Treads Light Treads Leg Aluminum Leg Wheel Wheel Hover Unit Improved Airjet Utility Improved Medium Armor Plating Device Improved Sensor Array Storage High-capacity Storage Unit Processor Advanced Targeting Computer Hackware Improved System Shield Protection Improved Medium Armor Plating Weapon Magnetic Acceleration Cannon Energy Gun Advanced Beam Rifle Ballistic Gun Light Assault Rifle Ballistic Cannon Magnetic Acceleration Cannon Launcher Grenade Launcher Slashing Weapon Scythe Build | -11 -10 -10 -10 -9 -8 -7 -7 -7 -7 -6 -6 -6 -6 -6 -5 ------- Run | Scr Mat Min Exi Min Mat Fac Low Low Dat Pro Fac Low Low Zio Pro Slots Evolved 8 | . . . . . 4 2 . . . . 2 . . . . Power . | . . . . . . . . . . . . . . . . Propulsion 2 | . . . . . 1 1 . . . . . . . . . Utility 6 | . . . . . 3 1 . . . . 2 . . . . Weapon . | . . . . . . . . . . . . . . . . Parts Attached 136 | 2 3 4 3 12 35 24 9 . 2 6 21 5 2 6 2 Power 8 | . . . . . 2 2 1 . . . 2 . . 1 . Engine 6 | . . . . . 1 2 1 . . . 1 . . 1 . Core 2 | . . . . . 1 . . . . . 1 . . . . Reactor . | . . . . . . . . . . . . . . . . Propulsion 51 | 2 . 2 2 8 13 8 1 . 1 . 10 1 . 1 2 Treads 12 | 2 . . . 2 7 1 . . . . . . . . . Leg 3 | . . 2 . 1 . . . . . . . . . . . Wheel 35 | . . . 2 5 6 6 1 . 1 . 10 1 . 1 2 Hover 1 | . . . . . . 1 . . . . . . . . . Flight . | . . . . . . . . . . . . . . . . Utility 37 | . 2 . 1 . 9 7 6 . 1 1 7 1 1 1 . Device 5 | . . . . . 2 1 1 . . . 1 . . . . Storage 5 | . 1 . 1 . 1 . 2 . . . . . . . . Processor 7 | . . . . . 2 4 . . . . 1 . . . . Hackware 1 | . . . . . . . . . . . . . 1 . . Protection 19 | . 1 . . . 4 2 3 . 1 1 5 1 . 1 . Artifact . | . . . . . . . . . . . . . . . . Weapon 40 | . 1 2 . 4 11 7 1 . . 5 2 3 1 3 . Energy Gun 16 | . . 2 . 1 6 4 . . . . . 1 1 1 . Energy Cannon . | . . . . . . . . . . . . . . . . Ballistic Gun 7 | . . . . 2 4 . 1 . . . . . . . . Ballistic Cannon 9 | . . . . . . 2 . . . 3 2 1 . 1 . Launcher 7 | . 1 . . 1 1 . . . . 2 . 1 . 1 . Special Weapon . | . . . . . . . . . . . . . . . . Impact Weapon . | . . . . . . . . . . . . . . . . Slashing Weapon 1 | . . . . . . 1 . . . . . . . . . Piercing Weapon . | . . . . . . . . . . . . . . . . Special Melee Weapon . | . . . . . . . . . . . . . . . . Unidentified Prototypes 8 | . . . . . 2 3 1 . . . . 1 . 1 . Parts Lost 60 | . 1 4 . 5 10 12 1 1 . 4 5 3 . . 14 Power 5 | . . . . 1 . 1 . . . . 1 1 . . 1 Propulsion 25 | . . 2 . 3 3 5 1 1 . 2 2 1 . . 5 Utility 17 | . . 1 . . 3 3 . . . 2 2 1 . . 5 Weapon 13 | . 1 1 . 1 4 3 . . . . . . . . 3 Highest Loss Streak 12 | . 1 1 . 2 4 11 1 1 . 2 2 2 . . 12 Average Slot Usage (%) 84 | . 99 84 85 76 77 75 85 86 83 82 91 86 85 90 88 Engine 6 | . 14 14 14 5 5 5 1 7 7 7 1 . . 2 5 Treads 6 | . 28 12 . 1 10 6 7 7 7 7 2 . . . . Leg 1 | . . 9 18 . . . . . . . . . . . . Wheel 16 | . . . 9 26 15 20 19 16 22 10 19 25 25 25 23 Device 3 | . . . . . 4 5 2 1 . . 3 6 6 6 5 Storage 10 | . 26 14 14 14 9 7 7 7 7 7 6 6 6 6 6 Processor 8 | . . . . . 1 9 23 23 23 21 13 12 12 12 12 Protection 9 | . . 6 . . 11 3 6 7 15 12 25 21 18 12 10 Energy Gun 8 | . 12 12 14 14 11 11 . . . . . . 8 12 11 Ballistic Gun 4 | . 14 14 14 13 4 . 2 7 . . . . . . . Ballistic Cannon 4 | . . . . . . 2 12 7 . 13 13 8 6 6 5 Naked Turns . | . . . . . . . . . . . . . . . . Heaviest Build 267 | 13 34 32 249 250 267 267 255 60 59 70 91 86 68 77 77 Greatest Support 63 | 40 40 40 32 43 63 42 42 36 36 36 46 52 36 52 52 Greatest Overweight (x) 82 | . . 9 82 15 26 82 9 2 1 3 20 1 1 2 13 Average Overweight (x) 3 | . . . 4 7 9 6 4 1 1 2 1 1 1 1 1 Largest Inventory Capacity 35 | 8 15 15 35 35 35 35 35 20 20 20 20 20 20 20 20 Average Capacity 25 | 8 14 15 27 35 35 35 29 20 20 20 20 20 20 20 20 Most Carried 35 | 6 9 11 18 24 35 35 35 18 19 20 20 20 20 20 20 Average Carried 20 | 6 7 9 13 20 25 33 24 18 18 17 19 19 20 19 19 Final Capacity 35 | 8 15 15 35 35 35 35 20 20 20 20 20 20 20 20 20 Final Carried 35 | 6 9 11 18 22 35 35 18 18 18 20 20 20 20 20 19 Class Distribution -------------------- 40% | Hauler-Mutant 25% | Mutant 21% | Scavenger-Mutant 8% | Derelict-Mutant Dominant Class ---------------- Mutant | -10/Materials Mutant | -10/Mines Hauler-Mutant | -10/Exiles Hauler-Mutant | -9/Mines Hauler-Mutant | -8/Materials Hauler-Mutant | -7/Factory Hauler-Mutant | -7/Lower Caves Mutant | -7/Lower Caves Scavenger-Mutant | -7/Data Miner Mutant | -6/Proximity Caves Scavenger-Mutant | -6/Factory Scavenger-Mutant | -6/Lower Caves Scavenger-Mutant | -6/Lower Caves Derelict-Mutant | -6/Zion Derelict-Mutant | -5/Proximity Caves Resources | -11 -10 -10 -10 -9 -8 -7 -7 -7 -7 -6 -6 -6 -6 -6 -5 ----------- Run | Scr Mat Min Exi Min Mat Fac Low Low Dat Pro Fac Low Low Zio Pro Matter Collected 4162 | 220 90 92 . 142 515 514 270 155 . 523 1109 90 99 41 302 Remotely . | . . . . . . . . . . . . . . . . Salvage Created 6451 | . 338 537 . 298 1129 1414 155 318 . 618 1238 66 46 . 294 Parts 322 | . 17 37 . 18 57 61 9 10 . 30 67 7 . . 9 Haulers Intercepted 2 | . . . . . 1 1 . . . . . . . . . Recyclers Shooed 9 | . . . . 3 . 1 . . . . 5 . . . . Parts Field Recycled . | . . . . . . . . . . . . . . . . Retrieved Matter . | . . . . . . . . . . . . . . . . Parts Self-Destructed 60 | . . . . . . . 9 10 . 28 . 6 . . 7 Prevented 7 | . . . . . . . . . . . . . . . 7 Kills | -11 -10 -10 -10 -9 -8 -7 -7 -7 -7 -6 -6 -6 -6 -6 -5 ------- Run | Scr Mat Min Exi Min Mat Fac Low Low Dat Pro Fac Low Low Zio Pro Combat Hostiles Destroyed 130 | . 9 14 . 5 19 19 6 7 . 18 20 7 . . 6 Melee 1 | . . 1 . . . . . . . . . . . . . Guns 50 | . 6 11 . 3 9 16 . 3 . . . . . . 2 Cannons 42 | . . . . . . 2 6 4 . 7 18 3 . . 2 AOE 36 | . 3 2 . 2 10 1 . . . 11 2 4 . . 1 Classes Destroyed 16 | . 5 1 . 1 4 1 . 2 . 2 . . . . . Worker 13 | . 1 . . 1 . 5 . . . . 6 . . . . Builder 13 | . . . . . 4 3 . . . . 6 . . . . Tunneler 4 | . . 2 . . . . . . . . 2 . . . . Hauler 2 | . . . . . 1 1 . . . . . . . . . Recycler 14 | . 1 . . 1 5 3 . . . . 4 . . . . Minesweeper 1 | . . . . . . . . . . 1 . . . . . Watcher 8 | . 1 . . . 2 2 . . . . 3 . . . . Swarmer 35 | . 3 3 . . 3 4 4 3 . 3 5 7 . . . Grunt 67 | . 6 11 . 4 11 9 1 3 . 6 11 . . . 5 Brawler 4 | . . . . 1 1 . . . . 1 1 . . . . Duelist 6 | . . . . . . . . 1 . 4 . . . . 1 Sentry 9 | . . . . . 3 3 . . . 2 1 . . . . Hunter 5 | . . . . . 1 2 . . . 1 1 . . . . Programmer 2 | . . . . . . 1 1 . . . . . . . . Behemoth 2 | . . . . . . . . . . 1 1 . . . . Enhanced Grunt 1 | . . . . . . . . . . . 1 . . . . Decomposer 1 | . . . . . . . . 1 . . . . . . . Samaritan 3 | . . . . . . . . 1 . . . . 2 . . Best Kill Streak 11 | . 5 3 . 3 5 11 4 4 . 7 9 4 . . 4 Combat Bots Only 7 | . 3 3 . 3 5 7 4 4 . 7 5 4 . . 4 Max Kills in Single Turn 4 | . 2 2 . 2 3 1 1 1 . 2 4 2 1 . 1 Gunslinging . | . . . . . . . . . . . . . . . . Exploded 3 | . 1 2 . 1 3 1 . . . 2 1 2 . . 1 Melee 1 | . . 1 . . . . . . . . . . . . . Uniques/NPCs Destroyed . | . . . . . . . . . . . . . . . . Combat | -11 -10 -10 -10 -9 -8 -7 -7 -7 -7 -6 -6 -6 -6 -6 -5 -------- Run | Scr Mat Min Exi Min Mat Fac Low Low Dat Pro Fac Low Low Zio Pro Damage Taken 8932 | . 331 377 . 324 1401 1505 306 179 . 756 1260 757 . . 1736 Core 1529 | . 48 84 . 26 130 184 39 40 . 126 98 . . . 754 Absorbed by Shields . | . . . . . . . . . . . . . . . . Core Remaining (%) 64 | 100 . . . 36 76 . . . . 44 . . . . . Volleys Fired 430 | . 25 41 . 13 66 105 13 16 . 43 78 13 6 . 11 Largest 3 | . 2 2 . 2 2 2 2 2 . 2 2 2 2 . 3 Hottest 163 | . 70 85 . 85 122 130 96 73 . 96 106 106 103 . 163 Shots Fired 750 | . 49 69 . 26 110 149 26 32 . 75 155 21 11 . 27 Gun 396 | . 45 67 . 24 91 129 3 16 . . . . 5 . 16 Cannon 313 | . . . . . . 20 23 16 . 64 155 18 6 . 11 Launcher 41 | . 4 2 . 2 19 . . . . 11 . 3 . . . Special . | . . . . . . . . . . . . . . . . Kinetic 460 | . 25 41 . 11 51 20 26 32 . 64 155 18 6 . 11 Thermal 199 | . 20 26 . 1 39 113 . . . . . . . . . Explosive 41 | . 4 2 . 2 19 . . . . 11 . 3 . . . Electromagnetic 50 | . . . . 12 1 16 . . . . . . 5 . 16 Robot Hit Streak 49 | . 14 31 . 7 49 27 7 20 . 44 22 8 14 . 30 Robot Miss Streak 3 | . 1 3 . 1 2 2 3 1 . 3 3 2 . . 1 Penetration Max 1 | . . . . . 1 . . . . . . . . . . Secondary Targets 6 | . 1 2 . . 2 1 . . . . . . . . . Max Gunslinging Chain 1 | . 1 1 . . 1 1 . . . . . . . . . Shots Hit Robots 582 | . 39 56 . 18 90 122 16 24 . 59 117 11 11 . 19 Core Hits 351 | . 20 34 . 14 68 53 10 15 . 46 65 8 5 . 13 Critical Hits 7 | . . 1 . . . 1 . . . 2 3 . . . . Critical Kills 4 | . . . . . . 1 . . . 1 2 . . . . Critical Parts Destroyed 3 | . . 1 . . . . . . . 1 1 . . . . Melee Attacks 1 | . . . . . . 1 . . . . . . . . . Impact . | . . . . . . . . . . . . . . . . Slashing 1 | . . . . . . 1 . . . . . . . . . Piercing . | . . . . . . . . . . . . . . . . Sneak Attacks . | . . . . . . . . . . . . . . . . Combat Hostiles . | . . . . . . . . . . . . . . . . Follow-up Attacks . | . . . . . . . . . . . . . . . . Damage Inflicted 17002 | . 645 744 . 374 2314 2491 428 471 . 2794 4827 669 314 . 931 Guns 4866 | . 364 592 . 177 1081 2046 43 234 . . . . 92 . 237 Cannons 6134 | . . . . . . 275 385 237 . 1208 3406 262 184 . 177 Explosions 5814 | . 258 136 . 122 1206 156 . . . 1586 1388 407 38 . 517 Melee . | . . . . . . . . . . . . . . . . Ramming 188 | . 23 16 . 75 27 14 . . . . 33 . . . . Kinetic 7442 | . 136 235 . 50 610 275 428 471 . 1208 3406 262 184 . 177 Thermal 3623 | . 228 357 . . 471 2050 . . . . . . . . 517 Explosive 5103 | . 258 136 . 122 1206 . . . . 1586 1388 407 . . . Electromagnetic 646 | . . . . 127 . 152 . . . . . . 130 . 237 Impact . | . . . . . . . . . . . . . . . . Slashing . | . . . . . . . . . . . . . . . . Piercing . | . . . . . . . . . . . . . . . . Highest Corruption 13 | . . . . 2 13 4 5 5 5 5 4 4 4 4 . Average Corruption 4 | . . . . 2 10 2 4 5 5 5 2 4 4 4 . Corruption Purged . | . . . . . . . . . . . . . . . . Effects 132 | . . . . 2 49 9 10 8 1 13 22 9 8 1 . Message Errors 43 | . . . . . 13 4 5 2 1 5 7 3 3 . . Matter Fused 29 | . . . . . 12 . 2 1 . 3 6 3 1 1 . Heat Flow Errors 10 | . . . . 1 1 1 1 1 . 1 2 2 . . . Energy Discharges 17 | . . . . . 6 2 1 3 . . 4 . 1 . . Parts Rejected 2 | . . . . . . . . 1 . . . 1 . . . Data Loss (minor) 18 | . . . . 1 8 2 1 . . 2 2 . 2 . . Data Loss (major) 4 | . . . . . 2 . . . . 2 . . . . . Misfires 2 | . . . . . 2 . . . . . . . . . . Misdirections 2 | . . . . . 2 . . . . . . . . . . Weapon Failures 5 | . . . . . 3 . . . . . 1 . 1 . . Overload Shots . | . . . . . . . . . . . . . . . . Overflow Damage 591 | . . 6 . 30 32 1 26 . . 82 237 40 76 . 61 Projectiles 372 | . . . . 10 . 1 26 . . 27 227 5 76 . . Explosions 199 | . . 6 . . 32 . . . . 55 10 35 . . 61 Melee 20 | . . . . 20 . . . . . . . . . . . Knockbacks 47 | . . . . 2 . 2 4 2 . 7 26 1 . . 3 Impact 1 | . . . . 1 . . . . . . . . . . . Kinetic 44 | . . . . . . 2 4 2 . 7 26 1 . . 2 Secondary 2 | . . . . 1 . . . . . . . . . . 1 Self-Inflicted Damage 738 | . 24 43 . 56 214 94 . . . 85 153 19 . . 50 Shots 25 | . 2 2 . 1 8 2 . . . 4 3 2 . . 1 Rammed 20 | . 6 5 . 3 1 1 . . . . 4 . . . . Targets Rammed 24 | . 7 8 . 3 1 1 . . . . 4 . . . . Kicked 2 | . . 2 . . . . . . . . . . . . . Crushed 2 | . 1 1 . . . . . . . . . . . . . Highest Temperature 520 | . 252 286 . 213 316 304 87 175 . 101 480 216 6 . 520 Average Temperature 92 | . 76 96 . 37 57 95 27 44 . 37 134 85 3 . 197 Received Heat Transfer 2283 | . 168 234 . 87 459 603 . 54 . 174 312 84 . . 108 Effects 12 | . 1 1 . . 1 3 . . . . 3 . . . 3 Shutdowns 1 | . . . . . . . . . . . . . . . 1 Energy Bleed 6 | . 1 1 . . . . . . . . 3 . . . 1 Interference 4 | . . . . . 1 3 . . . . . . . . . Damage (minor) 1 | . . . . . . . . . . . . . . . 1 Siege Activations . | . . . . . . . . . . . . . . . . Robots Corrupted 1 | . . . . . . . . . . . . . . . 1 Combat Hostiles 1 | . . . . . . . . . . . . . . . 1 Parts Fried 1 | . . . . . . . . . . . . . . . 1 Impact Corruptions 2 | . . . . 2 . . . . . . . . . . . Robots Melted . | . . . . . . . . . . . . . . . . Combat Hostiles . | . . . . . . . . . . . . . . . . Parts Melted 11 | . 2 1 . . 1 7 . . . . . . . . . Heat Transferred 6520 | . 666 851 . . 925 3628 . . . . . . . . 450 Parts Sabotaged . | . . . . . . . . . . . . . . . . Parts Stolen . | . . . . . . . . . . . . . . . . Parts Stripped . | . . . . . . . . . . . . . . . . Power Chain Reactions 5 | . . . . . . 2 . . . . . . 1 . 2 Missiles Intercepted . | . . . . . . . . . . . . . . . . Alert | -11 -10 -10 -10 -9 -8 -7 -7 -7 -7 -6 -6 -6 -6 -6 -5 ------- Run | Scr Mat Min Exi Min Mat Fac Low Low Dat Pro Fac Low Low Zio Pro Peak Influence 794 | . 172 364 . 115 320 271 . . . . 794 . . . . Initial 262 | . . 56 . . . 24 . . . . 262 . . . . Average 184 | . 32 246 . 27 183 100 . . . . 572 . . . . Maximum Alert Level 3 | . . 1 . . 1 1 . . . . 3 . . . . Low Security (%) 62 | 100 100 26 . 100 43 86 . . . . . . . . . Level 1 23 | . . 73 . . 56 13 . . . . 13 . . . . Level 2 11 | . . . . . . . . . . . 73 . . . . Level 3 2 | . . . . . . . . . . . 12 . . . . Level 4 . | . . . . . . . . . . . . . . . . Level 5 . | . . . . . . . . . . . . . . . . High Security . | . . . . . . . . . . . . . . . . Max Security . | . . . . . . . . . . . . . . . . Squads Dispatched 19 | . 1 . . . 2 7 . . . 1 8 . . . . Investigation 4 | . 1 . . . . 2 . . . . 1 . . . . Extermination 3 | . . . . . . 2 . . . . 1 . . . . Reinforcement 10 | . . . . . 2 3 . . . . 5 . . . . Assault 1 | . . . . . . . . . . 1 . . . . . Garrison 1 | . . . . . . . . . . . 1 . . . . Intercept . | . . . . . . . . . . . . . . . . Construction Impeded 6 | . . . . . 1 2 . . . . 3 . . . . Haulers Reinforced 1 | . . . . . . 1 . . . . . . . . . Stealth | -11 -10 -10 -10 -9 -8 -7 -7 -7 -7 -6 -6 -6 -6 -6 -5 --------- Run | Scr Mat Min Exi Min Mat Fac Low Low Dat Pro Fac Low Low Zio Pro Distress Signals 13 | . 1 . . . 2 1 . . . . 1 . . . 8 Communications Jammed . | . . . . . . . . . . . . . . . . Distress Signals . | . . . . . . . . . . . . . . . . Times Spotted 202 | . 13 15 . 11 26 31 5 7 . 32 36 8 . . 18 Peak Tracking Total 9 | . 4 3 . 3 5 5 4 4 . 9 6 4 . . 6 Tactical Retreats 8 | . 1 1 . . . 1 . . . 1 2 1 . . 1 Traps | -11 -10 -10 -10 -9 -8 -7 -7 -7 -7 -6 -6 -6 -6 -6 -5 ------- Run | Scr Mat Min Exi Min Mat Fac Low Low Dat Pro Fac Low Low Zio Pro Traps Triggered 5 | . 1 . . . 2 . . . . . 2 . . . . Indirectly . | . . . . . . . . . . . . . . . . Trap Hack Attempts . | . . . . . . . . . . . . . . . . Triggered . | . . . . . . . . . . . . . . . . Disarmed . | . . . . . . . . . . . . . . . . Reprogrammed . | . . . . . . . . . . . . . . . . Reused . | . . . . . . . . . . . . . . . . Traps Extracted . | . . . . . . . . . . . . . . . . Installed . | . . . . . . . . . . . . . . . . Triggered 1 | . . . . . . . 1 . . . . . . . . Exploded 2 | . . . . . . 2 . . . . . . . . . Machines | -11 -10 -10 -10 -9 -8 -7 -7 -7 -7 -6 -6 -6 -6 -6 -5 ---------- Run | Scr Mat Min Exi Min Mat Fac Low Low Dat Pro Fac Low Low Zio Pro Machines Disabled 19 | . . 2 . . 3 2 . . . 1 11 . . . . Max in Single Turn 3 | . . 1 . . 2 1 . . . 1 3 . . . . Garrison Access 3 | . . . . . . 1 . . . . 2 . . . . Machines Sabotaged . | . . . . . . . . . . . . . . . . Garrisons Compromised . | . . . . . . . . . . . . . . . . Overloaded Fab Kills . | . . . . . . . . . . . . . . . . Fab Network Shutdowns . | . . . . . . . . . . . . . . . . Hacking | -11 -10 -10 -10 -9 -8 -7 -7 -7 -7 -6 -6 -6 -6 -6 -5 --------- Run | Scr Mat Min Exi Min Mat Fac Low Low Dat Pro Fac Low Low Zio Pro Machines Accessed 27 | . 7 . 1 . 2 5 1 . 4 . 5 . . 1 1 Terminals 11 | . 5 . . . 1 1 . . . . 3 . . . 1 Fabricators 1 | . . . . . . 1 . . . . . . . . . Repair Stations . | . . . . . . . . . . . . . . . . Recycling Units 5 | . 2 . . . 1 2 . . . . . . . . . Scanalyzers . | . . . . . . . . . . . . . . . . Garrison Access 3 | . . . . . . 1 . . . . 2 . . . . Total Hacks 80 | . 17 . 1 . 6 11 1 . 28 . 10 . . 4 2 Successful 54 | . 6 . 1 . 3 3 1 . 28 . 6 . . 4 2 Failed 26 | . 11 . . . 3 8 . . . . 4 . . . . Catastrophic 6 | . 2 . . . . 3 . . . . 1 . . . . Database Lockouts . | . . . . . . . . . . . . . . . . Manual 13 | . 8 . . . 4 . . . . . 1 . . . . Terminals 31 | . 15 . . . 4 2 . . . . 8 . . . 2 Fabricators 1 | . . . . . . 1 . . . . . . . . . Repair Stations . | . . . . . . . . . . . . . . . . Recycling Units 11 | . 2 . . . 2 7 . . . . . . . . . Scanalyzers . | . . . . . . . . . . . . . . . . Garrison Access 3 | . . . . . . 1 . . . . 2 . . . . Terminal Hacks 47 | . 4 . 1 . 2 1 1 . 28 . 4 . . 4 2 Record 14 | . . . 1 . . . . . 11 . . . . . 2 Part Schematic 13 | . 1 . . . . 1 . . 7 . . . . 4 . Robot Schematic 7 | . . . . . . . . . 7 . . . . . . Prototype ID Bank 5 | . 1 . . . . . . . 3 . 1 . . . . Open Door 1 | . . . . . . . 1 . . . . . . . . Level Access Points 2 | . . . . . 1 . . . . . 1 . . . . Branch Access Points 2 | . . . . . 1 . . . . . 1 . . . . Recycling Unit Index 1 | . 1 . . . . . . . . . . . . . . Unreport Threat 1 | . . . . . . . . . . . 1 . . . . Hauler Manifests 1 | . 1 . . . . . . . . . . . . . . Fabricator Hacks . | . . . . . . . . . . . . . . . . Repair Station Hacks . | . . . . . . . . . . . . . . . . Recycling Unit Hacks 4 | . 2 . . . 1 1 . . . . . . . . . Retrieve Components 4 | . 2 . . . 1 1 . . . . . . . . . Scanalyzer . | . . . . . . . . . . . . . . . . Garrison Access Hacks 3 | . . . . . . 1 . . . . 2 . . . . Seal Access 3 | . . . . . . 1 . . . . 2 . . . . Unauthorized Hacks . | . . . . . . . . . . . . . . . . Terminals . | . . . . . . . . . . . . . . . . Fabricators . | . . . . . . . . . . . . . . . . Repair Stations . | . . . . . . . . . . . . . . . . Recycling Units . | . . . . . . . . . . . . . . . . Scanalyzers . | . . . . . . . . . . . . . . . . Garrison Access . | . . . . . . . . . . . . . . . . Data Cores Recovered . | . . . . . . . . . . . . . . . . Used . | . . . . . . . . . . . . . . . . Hacking Detections 12 | . 4 . . . 2 3 . . . . 3 . . . . Full Trace Events 3 | . . . . . . 2 . . . . 1 . . . . Feedback Events 1 | . . . . . . 1 . . . . . . . . . Corruption 1 | . . . . . . 1 . . . . . . . . . Feedback Blocked . | . . . . . . . . . . . . . . . . Robot Schematics Acquired 7 | . . . . . . . . . 7 . . . . . . Robots Built . | . . . . . . . . . . . . . . . . Matter . | . . . . . . . . . . . . . . . . Time . | . . . . . . . . . . . . . . . . Total Robot Build Rating . | . . . . . . . . . . . . . . . . Part Schematics Acquired 13 | . 1 . . . . 1 . . 7 . . . . 4 . Parts Built . | . . . . . . . . . . . . . . . . Matter . | . . . . . . . . . . . . . . . . Time . | . . . . . . . . . . . . . . . . Total Part Build Rating . | . . . . . . . . . . . . . . . . Parts Repaired . | . . . . . . . . . . . . . . . . Time . | . . . . . . . . . . . . . . . . Parts Recycled . | . . . . . . . . . . . . . . . . Recycled Matter . | . . . . . . . . . . . . . . . . Retrieved Matter . | . . . . . . . . . . . . . . . . Retrieved Components 9 | . 5 . . . 1 3 . . . . . . . . . Parts Scanalyzed . | . . . . . . . . . . . . . . . . Part Schematics Acquired . | . . . . . . . . . . . . . . . . Parts Damaged . | . . . . . . . . . . . . . . . . Bothacking | -11 -10 -10 -10 -9 -8 -7 -7 -7 -7 -6 -6 -6 -6 -6 -5 ------------ Run | Scr Mat Min Exi Min Mat Fac Low Low Dat Pro Fac Low Low Zio Pro Used RIF Installer . | . . . . . . . . . . . . . . . . Robots Hacked . | . . . . . . . . . . . . . . . . Non-combat . | . . . . . . . . . . . . . . . . Combat . | . . . . . . . . . . . . . . . . Robot Hacks Applied . | . . . . . . . . . . . . . . . . Relay Couplers Released . | . . . . . . . . . . . . . . . . Robots Rewired 2 | . . . . . . . . . . 2 . . . . . Allies Hacked . | . . . . . . . . . . . . . . . . Hacks Repelled . | . . . . . . . . . . . . . . . . Allies | -11 -10 -10 -10 -9 -8 -7 -7 -7 -7 -6 -6 -6 -6 -6 -5 -------- Run | Scr Mat Min Exi Min Mat Fac Low Low Dat Pro Fac Low Low Zio Pro Total Allies 10 | . . . . 3 . . . . . 3 . . . 4 . Largest Group 4 | . . . . 3 . . . . . 3 1 . . 4 4 Highest-Rated Group 151 | . . . . 40 . . . . . 144 95 . . 151 151 Highest-Rated Ally 95 | . . . . 16 . . . . . 95 95 . . 39 39 Total Orders . | . . . . . . . . . . . . . . . . Ally Attacks 127 | . . . . . . . . . . 71 28 . . . 28 Total Damage 3593 | . . . . . . . . . . 1879 1025 . . . 689 Kills 25 | . . . . . . . . . . 11 8 . . . 6 Allies Corrupted . | . . . . . . . . . . . . . . . . Allies Melted . | . . . . . . . . . . . . . . . . Intel | -11 -10 -10 -10 -9 -8 -7 -7 -7 -7 -6 -6 -6 -6 -6 -5 ------- Run | Scr Mat Min Exi Min Mat Fac Low Low Dat Pro Fac Low Low Zio Pro Robot Analysis Total . | . . . . . . . . . . . . . . . . Derelict Logs Recovered 6 | . . 1 . . . . . . . . . 2 1 . 2 Drone Launches . | . . . . . . . . . . . . . . . . Drone Recoveries . | . . . . . . . . . . . . . . . . Exploration | -11 -10 -10 -10 -9 -8 -7 -7 -7 -7 -6 -6 -6 -6 -6 -5 ------------- Run | Scr Mat Min Exi Min Mat Fac Low Low Dat Pro Fac Low Low Zio Pro Turns Passed 10895 | 15 1060 564 587 934 1316 1409 507 345 80 606 1017 552 333 1067 503 Spaces Moved 5711 | 9 422 209 219 389 405 511 295 259 77 342 620 419 287 923 325 Core 9 | . . 2 1 . . 1 . . . . 2 . . . 3 Treads 583 | 5 422 124 . 7 25 . . . . . . . . . . Legs 209 | 4 . 83 122 . . . . . . . . . . . . Wheels 4906 | . . . 96 382 380 506 295 259 77 342 618 419 287 923 322 Hover 4 | . . . . . . 4 . . . . . . . . . Flight . | . . . . . . . . . . . . . . . . Fastest Speed 100 | 120 160 160 120 205 176 168 101 101 101 101 100 105 101 101 105 Average Speed 153 | 142 160 205 259 223 262 209 151 117 101 134 115 105 101 108 111 Slowest Speed 4150 | 160 160 500 4150 1160 1360 4150 225 120 101 145 1050 105 101 116 700 Overloaded Moves . | . . . . . . . . . . . . . . . . Propulsion Burnouts . | . . . . . . . . . . . . . . . . Robots Hopped . | . . . . . . . . . . . . . . . . Cave-ins Triggered 1 | . . . . . 1 . . . . . . . . . . Exploration Rate (%) 53 | 3 75 53 54 88 34 18 52 55 71 55 25 72 55 89 54 Regions Visited 15 Branch Regions 11 Pre-discovered Areas 3 | . . 1 1 . . . . . 1 . . . . . . Known Exits Taken 5 | . . . . . 1 . . . . . 1 1 1 1 . Unknown Exits Taken 10 | 1 1 1 1 1 . 1 1 1 1 1 . . . . . Scrap Searched 14 | . . 1 . 2 . . 2 . . . . 2 3 2 2 Spaces Dug 10 | . . . . . . 1 . . . . . 9 . . . Terrain Destroyed 396 | . 13 6 . 9 101 50 3 4 . 109 47 30 . . 24 Melee 1 | . . . . . . 1 . . . . . . . . . Projectile 40 | . . . . . . 3 3 4 . 7 14 7 . . 2 AOE 355 | . 13 6 . 9 101 46 . . . 102 33 23 . . 22 Terrain Rammed . | . . . . . . . . . . . . . . . . Walls Destroyed . | . . . . . . . . . . . . . . . . Machines Disabled . | . . . . . . . . . . . . . . . . Actions | -11 -10 -10 -10 -9 -8 -7 -7 -7 -7 -6 -6 -6 -6 -6 -5 --------- Run | Scr Mat Min Exi Min Mat Fac Low Low Dat Pro Fac Low Low Zio Pro Total 7073 | 10 758 272 237 426 544 704 336 274 80 407 760 508 318 991 448 Wait 598 | . 297 7 . . 4 33 . . . 3 16 69 22 43 104 Move 5696 | 8 421 208 218 388 404 510 294 258 76 341 619 418 286 922 325 Hop . | . . . . . . . . . . . . . . . . Pick Up 92 | . 4 4 15 7 21 15 3 . . 4 9 2 1 5 2 Fast Attach 48 | . 2 1 1 2 14 12 1 . . 1 5 2 2 5 . Attach 41 | . 1 2 . 5 9 6 3 . 2 2 7 2 . . 2 Detach 8 | . . . . 1 3 1 . . 2 . 1 . . . . Swap 48 | 2 . 1 2 5 12 6 5 . . 3 9 2 . 1 . Drop 76 | . 1 . 1 2 10 14 17 . . . 12 . 1 15 3 Fire 430 | . 25 41 . 13 66 105 13 16 . 43 78 13 6 . 11 Melee 1 | . . . . . . 1 . . . . . . . . . Ram 9 | . . . . 3 1 1 . . . . 4 . . . . Kick 2 | . . 2 . . . . . . . . . . . . . Crush 13 | . 7 6 . . . . . . . . . . . . . Escape Stasis . | . . . . . . . . . . . . . . . . Rewire 11 | . . . . . . . . . . 10 . . . . 1 Trap . | . . . . . . . . . . . . . . . . Miscellaneous . | . . . . . . . . . . . . . . . . Route ------- -11/Scrapyard -10/Materials (discovered 3 exits: [*Mat x2] / [*Min]) -10/Mines -10/Exiles -9/Mines -8/Materials (discovered 3 exits: *Fac x3) -7/Factory (discovered 2 exits: *Sto / *Low) -7/Lower Caves -7/Lower Caves -7/Data Miner -6/Proximity Caves -6/Factory (discovered 6 exits: Fac x4 / *Low x2) -6/Lower Caves -6/Lower Caves (discovered 2 exits: *Fac / *Zio) -6/Zion -5/Proximity Caves History --------- Turn | Location | Event 1 | -11/Scrapyard | Discovered new exit (range 3) 16 | -11/Scrapyard | Entered Materials 310 | -10/Materials | Build established: Mutant 585 | -10/Materials | Discovered new exit (range 16) 763 | -10/Materials | Discovered new exit (range 5) 1026 | -10/Materials | Discovered new exit (range 12) 1076 | -10/Materials | Entered Mines 1145 | -10/Mines | Learned location of Mines (-9) 1519 | -10/Mines | Core integrity fell below 50% 1630 | -10/Mines | Deemed a non-threat by the Exiles lab entrance 1632 | -10/Mines | Discovered new exit (range 5) 1640 | -10/Mines | Entered Exiles 1688 | -10/Exiles | Met 8R-AWN 1789 | -10/Exiles | Met EX-HEX 2070 | -10/Exiles | Met EX-DEC 2103 | -10/Exiles | Learned location of Zion (-6) 2164 | -10/Exiles | Build established: Hauler-Mutant 2207 | -10/Exiles | Discovered new exit (range 12) 2227 | -10/Exiles | Entered Mines 3022 | -9/Mines | Assisted by bots powering up and referring to "LRC-V3" 3135 | -9/Mines | Assembled infested the area 3137 | -9/Mines | Discovered new exit (range 9) 3161 | -9/Mines | Entered Materials 3161 | -8/Materials | Evolved 4 slots: Propulsion x1, Utility x3 3360 | -8/Materials | Lost 4 parts (1n1u2w) 3603 | -8/Materials | Crushed by falling debris 3603 | -8/Materials | System corruption reached 10% 3634 | -8/Materials | Lost 3 parts (1n1u1w) 4006 | -8/Materials | Identified exit to Factory 4477 | -8/Materials | Entered Factory 4477 | -7/Factory | Evolved 2 slots: Propulsion x1, Utility x1 5399 | -7/Factory | Discovered new exit (range 15) 5474 | -7/Factory | Identified exit to Storage 5601 | -7/Factory | Destroyed 7 combat bots 5668 | -7/Factory | Lost 11 parts (1p5n2u3w) 5856 | -7/Factory | Discovered new exit (range 4) 5886 | -7/Factory | Entered Lower Caves 6108 | -7/Lower Caves | Found Prototype Device 6378 | -7/Lower Caves | Discovered new exit (range 14) 6393 | -7/Lower Caves | Entered another Lower Caves area 6730 | -7/Lower Caves | Discovered new exit (range 7) 6738 | -7/Lower Caves | Entered Data Miner 6741 | -7/Data Miner | Discovered new exit (range 7) 6759 | -7/Data Miner | Met Data Miner 6780 | -7/Data Miner | Learned location of Section 7 (-3) 6780 | -7/Data Miner | Acquired the access code to Warlord's prototype stash 6796 | -7/Data Miner | Received God Mode back door access code from Data Miner 6818 | -7/Data Miner | Entered Proximity Caves 6864 | -6/Proximity Caves | Escorted by Enhanced Grunt 6865 | -6/Proximity Caves | Attracted the attention of an 0b10 outpost 6900 | -6/Proximity Caves | Destroyed 7 combat bots 6994 | -6/Proximity Caves | Attracted the attention of an 0b10 checkpoint 6998 | -6/Proximity Caves | Core integrity fell below 50% 7008 | -6/Proximity Caves | Spotted B-75 Beast 7022 | -6/Proximity Caves | Destroyed B-75 Beast 7182 | -6/Proximity Caves | Build established: Mutant 7405 | -6/Proximity Caves | Discovered new exit (range 14) 7424 | -6/Proximity Caves | Entered Factory 7424 | -6/Factory | Accompanied by 1 ally 7424 | -6/Factory | Evolved 2 slots: Utility x2 7525 | -6/Factory | Garrison activated, responded to threat 7639 | -6/Factory | Identified exit to Factory 7643 | -6/Factory | Spotted B-75 Beast 7688 | -6/Factory | Destroyed B-75 Beast 7795 | -6/Factory | Build established: Scavenger-Mutant 8216 | -6/Factory | Identified exit to Lower Caves 8441 | -6/Factory | Entered Lower Caves 8514 | -6/Lower Caves | Learned 8 Factory zone layouts 8543 | -6/Lower Caves | Encountered a Warlord checkpoint 8574 | -6/Lower Caves | Spotted B-75 Beast 8681 | -6/Lower Caves | Learned Factory garrison access intel 8944 | -6/Lower Caves | Discovered new exit (range 14) 8957 | -6/Lower Caves | Identified exit to Lower Caves 8974 | -6/Lower Caves | Found Alien Artifact 8974 | -6/Lower Caves | Identified Core Expander 8974 | -6/Lower Caves | Installed Core Expander, added new Weapon slot 8993 | -6/Lower Caves | Entered another Lower Caves area 9005 | -6/Lower Caves | Discovered exit to Factory (range 9) 9063 | -6/Lower Caves | Learned Factory terminal intel 9190 | -6/Lower Caves | Encountered a Warlord checkpoint 9311 | -6/Lower Caves | Discovered new exit (range 15) 9325 | -6/Lower Caves | Identified exit to Zion 9326 | -6/Lower Caves | Entered Zion 9363 | -6/Zion | System corruption cleaned by Quarantine Array 9582 | -6/Zion | Found Prototype Launcher 9582 | -6/Zion | Identified Gui. Missile Launcher 9667 | -6/Zion | Received a visual enhancement algorithm 9805 | -6/Zion | Found Prototype Energy Gun 9917 | -6/Zion | Found CR-A16's Pointy Stick 10131 | -6/Zion | Imprinted 10133 | -6/Zion | Declared Zion's savior 10165 | -6/Zion | Build established: Derelict-Mutant 10290 | -6/Zion | Discovered new exit (range 10) 10299 | -6/Zion | Identified exit to Proximity Caves 10334 | -6/Zion | Found Prototype Device 10393 | -6/Zion | Entered Proximity Caves 10393 | -5/Proximity Caves | Accompanied by 4 allies 10585 | -5/Proximity Caves | Learned Factory trap positions 10673 | -5/Proximity Caves | Learned Factory interactive machine intel 10880 | -5/Proximity Caves | Core integrity fell below 50% 10892 | -5/Proximity Caves | Core integrity fell below 20% 10896 | -5/Proximity Caves | Destroyed by D-63 Destroyer with Heavy Rocket Launcher Last Messages --------------- 10836_ Carbon-fiber Leg self-destruct mechanism malfunctions. 10837_ Imp. Melee Analysis Suite self-destruct mechanism malfunctions. 10841_ Carbon-fiber Leg fries itself beyond repair. 10854_ Shock Rifle destroyed. 10858_ Magnetic Acceleration Cannon destroyed. 10860_ Imp. Heavy Armor Plating destroyed. 10862_ Mak. Power Source destroyed. 10862_ Wheel destroyed. 10864_ Com. Wheel destroyed. 10864_ Hvy. Riot Gun destroyed. 10864_ Com. Wheel destroyed. 10880_ Dispatcher launches Target Drone into the air. 10882_ Target Drone destroyed. 10885_ I-47 Archangel distress signal alerts nearby ally. 10886_ Wheel destroyed. 10887_ Imp. Sensor Array destroyed. 10890_ Dispatcher launches Target Drone into the air. 10890_ Target Drone destroyed. 10892_ Imp. System Shield destroyed. 10896_ Adv. Targeting Computer destroyed. Map ----- +----------------------------------------------------+ | ?????????????????????????????????????????????????? | | ?????????????????????????????????????????????????? | | ?????????????????????????????????????????????????? | | ?????????????????????????????????????????????????? | | ?????????????????????????????????????????????????? | | ?????????????????????????????????????????????????? | | ?????????????????????????????????????????????????? | | ?????????????????????????????????????????????????? | | ?????????????????????????????????????????????????? | | ?????????????????????????????????????????????????? | | ?????????????????????????????????????????????????? | | ???????????????????????????? ???????????????????? | | ?????????????????? ####+#### ????????????????? | | ???????????????? " " ??????????????? | | ?????????????? i ????????????? | | ????????????? d ????????????? | | ???????????? ???????????? | | ??????????? ???????????? | | ?????????? #??????????? | | ????????? #??????????? | | ????????? #??????????? | | ???????? #??????????? | | ???????? #??????????? | | ??????? #??????????? | | ??????? #???????????????? | | ??????? @ #???????????????? | | ?????? ! #???????????????? | | ?????? = #???????????????? | | ????? #???????????????? | | ????? < #???????????????? | | ????? i #???????????????? | | ????? #???????????????? | | ????? #???????????????? | | ????? d #???????????????? | | ????? #???????????????? | | ????? ######??????????? | | ????? #??????????? | | ?????? #??????????? | | ?????? d #??????????? | | ??????? #??????????? | | ??????? #??????????? | | ??????? #??????????? | | ???????? #??????????? | | ???????? #??????????? | | ????????? #??????????? | | ????????? #??????????? | | ??????????### ######### ######??????????? | | ????????????# ????????# #???????????????? | | ????????????##########????????# #???????????????? | | ?????????????????????????????? ???????????????? | +----------------------------------------------------+ Best States ------------- Heat Dissipation 44 Coolant Potential 65 Energy Generation 18 Energy Capacity 310 Matter Stores 300 Matter Capacity 300 Sight Range 18 Robot Scan Range 15 Terrain Scan Density 10 Armor Coverage 975 Resistance: KI 20 Resistance: TH 20 Resistance: EX 20 Resistance: EM 20 Resistance: I 20 Resistance: S 20 Resistance: P 20 Propulsion Shielding 66 Evasion (%) 40 Targeting Accuracy 13 Armor Integrity Analysis 35 Recoil Reduction 3 Offensive Hacking 10 Defensive Hacking 12 Item Schematics ----------------- Hcp. Storage Unit | -10/Materials | Hacked Adv. Terrain Scan Processor | -7/Factory | Hacked Combat Drone Bay | -7/Data Miner | Free Lgt. Regenerative Plating | -7/Data Miner | Free Exp. Terrain Scan Processor | -7/Data Miner | Free Exp. Targeting Computer | -7/Data Miner | Free Exp. Transmission Jammer | -7/Data Miner | Free Exp. ECM Suite | -7/Data Miner | Free Mni. Smartbomb Launcher | -7/Data Miner | Free Riot Gun | -6/Zion | Free Battle Cannon | -6/Zion | Free Flamer | -6/Zion | Free Phasing Sabre | -6/Zion | Free Robot Schematics ------------------ S-27 Virus | -7/Data Miner | Free G-50 Soldier | -7/Data Miner | Free G-67 Veteran | -7/Data Miner | Free L-41 Fighter | -7/Data Miner | Free H-66 Slayer | -7/Data Miner | Free P-70 Sage | -7/Data Miner | Free I-36 Angel | -7/Data Miner | Free Fabricated ------------ Nothing Alien Tech Used ----------------- Core Expander Achievements -------------- None Challenges ------------ None Game ------ Seed AutogunLatentScanner Manual? 0 Play Time 01:13:23 Cumulative 293.7 hours Start 2021.03.06 @ 09:49:46 End 2021.03.06 @ 18:08:38 Sessions 3 Manual Loads 0 Difficulty Adventurer Special Mode None Game No. 293 Rogue 135 Adventurer 80 Explorer 78 Win Type - Total 22 Types 16/0/4/2/0/0/0/0/0 Lore% 79 Gallery% 86 Achievement% 67 Wizard Run 0 Options --------- ASCII 0 Keyboard 0 Movement Numpad Keybinds 0 Fullscreen 2 Font 18/TerminusBold Map View 76x50 Tactical HUD 1 Map Filters NONE Filters NONE Steam 1 RUN: 585c87a5-c8ed-433f-b65a-1d01c4e755a4